bitfinex/quotes_SOLUSD_20250708
["timestamp","ask_amount","ask_price","bid_price","bid_amount"]
[1751957554913,7.50308572,149.74,149.72,40.55913438]
[1751957555114,7.50308572,149.73,149.72,40.55913438]
[1751957555427,7.50308572,149.73,149.72,33.88]
[1751957560928,7.50308572,149.73,149.72,40.55913438]
[1751957564330,7.50452399,149.73,149.72,40.55913438]
[1751957564831,7.50452399,149.73,149.72,43.43892409]
[1751957565028,7.50452399,149.74,149.72,43.43892409]
[1751957565235,7.50452399,149.73,149.72,43.43892409]
[1751957565940,7.50452399,149.74,149.72,43.43892409]
[1751957566145,7.50452399,149.73,149.72,43.43892409]
[1751957566343,0.03,149.75,149.72,43.43892409]
[1751957566649,0.03,149.75,149.72,40.55913438]
[1751957566650,7.50392743,149.74,149.72,40.55913438]
[1751957566806,0.03,149.75,149.72,40.55913438]
[1751957568038,0.03,149.75,149.74,2.87978971]
[1751957568220,0.03,149.75,149.74,36.69978971]
[1751957568418,0.03,149.75,149.74,43.37803199]
[1751957569932,7.53291185,149.75,149.74,33.82]
[1751957570138,7.53341949,149.75,149.74,33.82]
[1751957570638,7.53341949,149.75,149.73,43.37827121]
[1751957570838,7.50341949,149.74,149.73,43.37827121]
[1751957571440,7.50341949,149.74,149.73,40.4984815]
[1751957572027,7.50341949,149.74,149.73,43.37827121]
[1751957572337,0.03,149.75,149.73,43.37827121]
[1751957576257,7.50379359,149.74,149.73,43.37827121]
[1751957576958,7.50379359,149.74,149.73,9.55827121]
[1751957577132,0.03,149.75,149.73,43.37827121]
[1751957578360,0.03,149.75,149.74,2.87978971]
[1751957578549,7.53373073,149.75,149.74,2.87978971]
[1751957578740,7.53373073,149.75,149.74,33.82]
[1751957579267,10.41352044,149.75,149.72,0.06]
[1751957579570,7.50373073,149.74,149.72,6.73901162]
[1751957579757,7.50373073,149.73,149.72,6.73901162]
[1751957580327,7.50373073,149.73,149.72,0.06]
[1751957582934,7.50507328,149.73,149.72,0.06]
[1751957584356,2.87978971,149.74,149.72,0.06]
[1751957584733,2.90978971,149.75,149.72,0.06]
[1751957586261,7.50507156,149.74,149.72,0.06]
[1751957586559,36.38486127,149.73,149.72,0.06]
[1751957586759,47.90402011,149.73,149.72,0.06]
[1751957586956,57.28535956,149.73,149.72,0.06]
[1751957588544,63.96404786,149.73,149.72,0.06]
[1751957588848,44.64964886,149.72,149.71,0.06]
[1751957589055,56.66170274,149.72,149.71,0.06]
[1751957589249,66.03529164,149.72,149.71,0.06]
[1751957589752,56.66170274,149.72,149.71,0.06]
[1751957589960,26.0,149.7,149.65,0.06]
[1751957590163,4.50698232,149.66,149.65,0.06]
[1751957595659,7.47628085,149.69,149.65,0.06]
[1751957597566,4.50698232,149.66,149.65,0.06]
[1751957602075,11.97065872,149.66,149.65,0.06]
[1751957602646,4.50698232,149.66,149.65,0.06]
[1751957610571,30.50698232,149.66,149.65,0.06]
[1751957610764,37.18879442,149.66,149.65,0.06]
[1751957611254,44.64299881,149.66,149.65,0.06]
[1751957612358,33.45420439,149.66,149.65,0.06]
[1751957612561,37.96118671,149.66,149.65,0.06]
[1751957612977,37.96131443,149.66,149.65,0.06]
[1751957614284,44.64312653,149.66,149.65,0.06]
[1751957614463,37.96131443,149.66,149.65,0.06]
[1751957615582,44.64312653,149.66,149.65,0.06]
[1751957617388,37.96131443,149.66,149.65,0.06]
[1751957618496,33.45433211,149.66,149.65,0.06]
[1751957618671,37.96131443,149.66,149.65,0.06]
[1751957622798,36.33979173,149.66,149.65,0.06]
[1751957630291,45.65770686,149.66,149.65,0.06]
[1751957633212,36.33979173,149.66,149.65,0.06]
[1751957634492,33.45433211,149.66,149.65,0.06]
[1751957634798,36.33979173,149.66,149.65,0.06]
[1751957635719,33.45433211,149.66,149.65,0.06]
[1751957635886,36.33979173,149.66,149.65,0.06]
[1751957636087,45.72918621,149.66,149.65,0.06]
[1751957636607,7.45433211,149.66,149.65,0.06]
[1751957638997,7.45433211,149.66,149.65,2.94545962]
[1751957640317,7.45433211,149.66,149.65,0.06]
[1751957641511,10.33979173,149.66,149.65,0.06]
[1751957643596,19.72918621,149.66,149.65,0.06]
[1751957647013,36.33979173,149.66,149.65,0.06]
[1751957650428,43.02160383,149.66,149.65,0.06]
[1751957650644,26.0,149.64,149.63,0.06]
[1751957650806,45.7352908,149.64,149.63,0.06]
[1751957651207,36.33979173,149.64,149.63,0.06]
[1751957651816,48.84824433,149.64,149.63,0.06]
[1751957652525,55.53094948,149.64,149.63,0.06]
[1751957653010,57.15578125,149.64,149.63,0.06]
[1751957653605,75.80543011,149.64,149.63,0.06]
[1751957657129,63.29697751,149.64,149.63,0.06]
[1751957661536,72.67346184,149.64,149.63,0.06]
[1751957662401,63.29697751,149.64,149.63,0.06]
[1751957664234,72.67014119,149.64,149.63,0.06]
[1751957666733,63.29697751,149.64,149.63,0.06]
[1751957666926,26.0,149.61,149.6,0.06]
[1751957667130,37.9646235,149.61,149.6,0.06]
[1751957667838,30.51029139,149.61,149.6,0.06]
[1751957668023,38.00497509,149.61,149.6,0.06]
[1751957670124,44.68902027,149.61,149.6,0.06]
[1751957672824,43.0661942,149.61,149.6,0.06]
[1751957675143,36.38214902,149.61,149.6,0.06]
[1751957681058,43.0661942,149.61,149.6,0.06]
[1751957682530,36.38214902,149.61,149.6,0.06]
[1751957690648,45.75050364,149.61,149.6,0.06]
[1751957692753,42.86303832,149.61,149.6,0.06]
[1751957692936,45.75050364,149.61,149.6,0.06]
[1751957694943,52.43454882,149.61,149.6,0.06]
[1751957695937,43.0661942,149.61,149.6,0.06]
[1751957698052,43.0661942,149.61,149.58,0.06]
[1751957698053,95.55584306,149.61,149.58,0.06]
[1751957698355,12.28478012,149.59,149.58,0.06]
[1751957698532,45.77946382,149.59,149.58,0.06]
[1751957698732,36.38214902,149.59,149.58,0.06]
[1751957699763,43.06708785,149.59,149.58,0.06]
[1751957700167,61.71673671,149.59,149.58,0.06]
[1751957700339,119.61505059,149.59,149.58,0.06]
[1751957700941,93.61505059,149.59,149.58,0.06]
[1751957701146,82.77169799,149.59,149.58,0.06]
[1751957702468,88.03619325,149.59,149.58,0.06]
[1751957703181,100.53947923,149.59,149.58,0.06]
[1751957704561,21.53711418,149.58,149.56,0.2]
[1751957704743,75.37025494,149.57,149.56,0.2]
[1751957706862,82.05608766,149.57,149.56,0.2]
[1751957708042,82.05608766,149.57,149.55,0.06]
[1751957708242,17.06842877,149.56,149.55,0.06]
[1751957709050,35.71807763,149.56,149.55,0.06]
[1751957709262,183.41807763,149.56,149.55,0.06]
[1751957709464,183.41807763,149.56,149.5,0.2]
[1751957709465,26.0,149.52,149.5,0.2]
[1751957709665,7.4946837,149.51,149.5,0.2]
[1751957709856,10.38214902,149.51,149.5,0.2]
[1751957710172,17.07066483,149.51,149.5,0.2]
[1751957710767,9.57598113,149.51,149.5,0.2]
[1751957710963,28.22562999,149.51,149.5,0.2]
[1751957716196,26.07068965,149.54,149.5,0.2]
[1751957716393,2.88746532,149.53,149.5,0.2]
[1751957716559,154.38662533,149.56,149.5,0.2]
[1751957716764,2.88746532,149.55,149.51,2.88746532]
[1751957717059,2.88746532,149.56,149.5,6.88889534]
[1751957717390,26.0,149.54,149.5,9.77636066]
[1751957717759,2.88746532,149.55,149.5,9.77636066]
[1751957718159,26.0,149.54,149.5,9.77636066]
[1751957718870,26.0,149.54,149.5,11.40323236]
[1751957721085,30.51433702,149.54,149.5,11.40323236]
[1751957723494,30.51433702,149.54,149.5,6.88889534]
[1751957723683,30.51433702,149.54,149.5,11.40323236]
[1751957724293,26.0,149.54,149.5,11.40323236]
[1751957724486,30.51433702,149.54,149.5,11.40323236]
[1751957725907,30.51433702,149.54,149.5,6.88889534]
[1751957726105,30.51433702,149.54,149.5,11.40323236]
[1751957728215,26.0,149.54,149.5,11.40323236]
[1751957728415,30.51433702,149.54,149.5,11.40323236]
[1751957730410,7.46862016,149.53,149.5,11.40323236]
[1751957731403,26.0,149.54,149.52,4.51433702]
[1751957731601,26.0,149.54,149.53,4.51433702]
[1751957731781,26.0,149.54,149.52,4.51433702]
[1751957733612,26.0,149.54,149.51,4.51433702]
[1751957733905,30.51433702,149.54,149.5,11.40317418]
[1751957734292,30.51433702,149.54,149.5,4.71433702]
[1751957734485,30.51433702,149.54,149.5,0.2]
[1751957734686,30.51433702,149.54,149.5,4.71433702]
[1751957734886,30.51433702,149.54,149.5,0.2]
[1751957735094,30.51433702,149.54,149.5,4.71433702]
[1751957736187,26.0,149.54,149.52,4.51433702]
[1751957736388,26.0,149.54,149.5,6.8888133]
[1751957736587,26.0,149.54,149.52,4.51433702]
[1751957737389,0.03,149.55,149.52,11.20227198]
[1751957737715,26.03,149.55,149.52,6.68793496]
[1751957738010,0.03,149.55,149.54,4.51433702]
[1751957739480,0.03,149.55,149.53,8.19329517]
[1751957739711,0.03,149.55,149.53,12.70763219]
[1751957741915,0.03,149.55,149.53,8.19329517]
[1751957742213,0.03,149.55,149.53,12.70763219]
[1751957743614,0.03,149.55,149.54,4.51433702]
[1751957744987,0.03,149.55,149.54,2.88776696]
[1751957745189,0.03,149.55,149.53,11.08106213]
[1751957745818,0.03,149.55,149.53,4.39376696]
[1751957746403,0.03,149.55,149.53,11.0813493]
[1751957748826,0.03,149.55,149.53,12.70634929]
[1751957752625,0.03,149.55,149.53,8.19358234]
[1751957752830,0.03,149.55,149.53,12.70634929]
[1751957757332,0.03,149.55,149.54,4.51276695]
[1751957757708,0.03,149.55,149.54,11.19994095]
[1751957768825,0.03,149.55,149.54,9.57427889]
[1751957772946,0.03,149.55,149.53,0.06]
[1751957773442,7.49143071,149.54,149.53,6.74762121]
[1751957773823,0.03,149.55,149.53,9.6347261]
[1751957774020,7.52413512,149.55,149.53,9.6347261]
[1751957774445,0.03,149.55,149.53,9.6347261]
[1751957774822,7.52751874,149.55,149.53,9.6347261]
[1751957775024,0.03,149.55,149.53,9.6347261]
[1751957775232,7.52751239,149.55,149.53,9.6347261]
[1751957776137,0.03,149.55,149.53,9.6347261]
[1751957777230,7.50166058,149.54,149.53,9.6347261]
[1751957777551,0.03,149.55,149.53,9.6347261]
[1751957778126,7.53208814,149.55,149.53,9.6347261]
[1751957778328,0.03,149.55,149.53,9.6347261]
[1751957778826,0.03,149.55,149.54,2.88710489]
[1751957779027,7.5333181,149.55,149.54,2.88710489]
[1751957779230,0.03,149.55,149.54,2.88710489]
[1751957779557,0.03,149.55,149.53,0.06]
[1751957779732,7.5333181,149.55,149.53,2.94710489]
[1751957779931,0.03,149.55,149.53,2.94710489]
[1751957780528,7.53453302,149.55,149.53,2.94710489]
[1751957780727,0.03,149.55,149.54,6.687174]
[1751957781228,7.53619088,149.55,149.54,6.687174]
[1751957781663,7.53619088,149.55,149.53,9.63451485]
[1751957781859,7.50619088,149.54,149.53,9.63451485]
[1751957783671,7.50619088,149.54,149.53,0.06]
[1751957802382,10.39329577,149.54,149.53,0.06]
[1751957802990,17.08046977,149.54,149.53,0.06]
[1751957803151,26.43315225,149.54,149.53,0.06]
[1751957805293,16.85887336,149.54,149.53,0.06]
[1751957805460,19.74597825,149.54,149.53,0.06]
[1751957805655,19.75272601,149.54,149.53,0.06]
[1751957806784,26.43990001,149.54,149.53,0.06]
[1751957814191,16.86562112,149.54,149.53,0.06]
[1751957814396,7.49583161,149.54,149.53,0.06]
[1751957820604,10.3829365,149.54,149.53,0.06]
[1751957821398,17.0701105,149.54,149.53,0.06]
[1751957822389,26.43990001,149.54,149.53,0.06]
[1751957822566,17.0701105,149.54,149.53,0.06]
[1751957824396,26.43990001,149.54,149.53,0.06]
[1751957826502,23.55279512,149.54,149.53,0.06]
[1751957826704,26.43990001,149.54,149.53,0.06]
[1751957828903,35.71975936,149.54,149.53,0.06]
[1751957839915,32.83265447,149.54,149.53,0.06]
[1751957840105,35.71975936,149.54,149.53,0.06]
[1751957842713,7.49583161,149.54,149.53,0.06]
[1751957842913,36.3829365,149.54,149.53,0.06]
[1751957844309,33.49583161,149.54,149.53,0.06]
[1751957844500,36.3829365,149.54,149.53,0.06]
[1751957845496,52.43993726,149.54,149.53,0.06]
[1751957845905,43.0701105,149.54,149.53,0.06]
[1751957847497,95.55975936,149.54,149.53,0.06]
[1751957848819,92.67265447,149.54,149.53,0.06]
[1751957848998,95.55975936,149.54,149.53,0.06]
[1751957850924,69.55975936,149.54,149.53,0.06]
[1751957851095,82.05821642,149.54,149.5,0.2]
[1751957851319,28.88710489,149.51,149.5,0.2]
[1751957851619,43.07145231,149.51,149.5,0.2]
[1751957851997,52.44693367,149.51,149.5,0.2]
[1751957852911,86.28693367,149.51,149.5,0.2]
[1751957855634,76.71131297,149.51,149.5,0.2]
[1751957855801,45.75841786,149.51,149.5,0.2]
[1751957856623,42.87131297,149.51,149.5,0.2]
[1751957856818,33.49583161,149.51,149.5,0.2]
[1751957859329,36.3829365,149.51,149.5,0.2]
[1751957862830,33.49583161,149.51,149.5,0.2]
[1751957863134,36.3829365,149.51,149.5,0.2]
[1751957863327,33.49583161,149.51,149.5,0.2]
[1751957865031,7.49583161,149.51,149.5,3.08710489]
[1751957865639,7.49583161,149.51,149.5,9.7760681]
[1751957866743,7.49583161,149.51,149.5,6.88896321]
[1751957866955,7.49583161,149.51,149.5,9.7760681]
[1751957867237,7.49583161,149.51,149.5,0.2]
[1751957869551,7.49863853,149.51,149.5,0.2]
[1751957871646,4.5160727,149.52,149.5,0.2]
[1751957873050,26.0,149.51,149.5,0.2]
[1751957873353,4.5160727,149.51,149.5,0.2]
[1751957873842,39.88937086,149.52,149.5,0.2]
[1751957874047,35.37329816,149.52,149.5,0.2]
[1751957874254,26.0,149.52,149.5,0.2]
[1751957874831,26.0,149.52,149.5,4.7160727]
[1751957875232,26.0,149.52,149.5,0.2]
[1751957877248,26.0,149.52,149.51,4.5160727]
[1751957877753,26.0,149.52,149.5,11.40489864]
[1751957878537,26.0,149.52,149.5,4.7160727]
[1751957878738,26.0,149.52,149.5,0.2]
[1751957884091,30.5160727,149.52,149.5,0.2]
[1751957885184,4.5160727,149.51,149.5,0.2]
[1751957888684,11.20458851,149.51,149.5,0.2]
[1751957889067,20.57788667,149.51,149.5,0.2]
[1751957890959,73.04753553,149.51,149.5,0.2]
[1751957891158,63.67423737,149.51,149.5,0.2]
[1751957897390,73.03415823,149.51,149.5,0.2]
[1751957901689,49.86843667,149.51,149.5,0.2]
[1751957901919,54.38450937,149.51,149.5,0.2]
[1751957903228,45.02458851,149.51,149.5,0.2]
[1751957904905,43.39980841,149.51,149.5,0.2]
[1751957914717,9.57980841,149.51,149.5,0.2]
[1751957914923,28.8912926,149.51,149.5,0.2]
[1751957917520,35.57980841,149.51,149.5,0.2]
[1751957919315,32.68851581,149.51,149.5,0.2]
[1751957919529,28.8912926,149.51,149.5,0.2]
[1751957920630,26.0,149.51,149.5,0.2]
[1751957920809,28.8912926,149.51,149.5,0.2]
[1751957924633,26.0,149.51,149.5,0.2]
[1751957924832,28.8912926,149.51,149.5,0.2]
[1751957933841,26.0,149.51,149.5,0.2]
[1751957934153,28.8912926,149.51,149.5,0.2]
[1751957934726,26.0,149.51,149.5,0.2]
[1751957934931,9.38640507,149.53,149.5,9.78025581]
[1751957934932,0.03,149.53,149.5,9.78025581]
[1751957937748,0.03,149.53,149.52,2.8912926]
[1751957940432,0.03,149.53,149.52,9.57936108]
[1751957945368,0.03,149.53,149.52,2.8912926]
[1751957948445,0.03,149.53,149.51,2.8912926]
[1751957948761,0.03,149.53,149.5,9.78001524]
[1751957948958,0.03,149.53,149.5,3.0912926]
[1751957949152,0.03,149.53,149.5,0.2]
[1751957951277,2.9212926,149.53,149.5,0.2]
[1751957951945,0.03,149.53,149.5,0.2]
[1751957952547,0.03,149.53,149.5,3.0912926]
[1751957953171,2.9212926,149.53,149.5,0.2]
[1751957955273,2.8912926,149.52,149.5,0.2]
[1751957956951,2.8912926,149.51,149.5,0.2]
[1751957959669,28.8912926,149.51,149.5,0.2]
[1751957960262,35.57980841,149.51,149.5,0.2]
[1751957961676,28.8912926,149.51,149.5,0.2]
[1751957966895,35.57980841,149.51,149.5,0.2]
[1751957972498,32.68851581,149.51,149.5,0.2]
[1751957972699,35.57980841,149.51,149.5,0.2]
[1751957975070,26.0,149.51,149.5,0.2]
[1751957975276,28.8912926,149.51,149.5,0.2]
[1751957980106,26.0,149.51,149.5,0.2]
[1751957980398,28.8912926,149.51,149.5,0.2]
[1751957991907,35.57980841,149.51,149.5,0.2]
[1751957992313,63.59348823,149.51,149.5,0.2]
[1751957992611,63.60504821,149.51,149.5,0.2]
[1751958000328,54.22945727,149.51,149.5,0.2]
[1751958000522,18.64964886,149.5,149.48,0.2]
[1751958000811,81.34094146,149.49,149.48,0.2]
[1751958001320,90.70943548,149.49,149.48,0.2]
[1751958002523,97.39884614,149.49,149.48,0.2]
[1751958010521,88.03035212,149.49,149.48,0.2]
[1751958016114,59.8,149.49,149.48,0.2]
[1751958016320,28.8912926,149.49,149.48,0.2]
[1751958017239,2.8912926,149.49,149.48,0.2]
[1751958017626,28.8912926,149.49,149.48,0.2]
[1751958021844,36.37395312,149.49,149.48,0.2]
[1751958030940,43.06336378,149.49,149.48,0.2]
[1751958032153,71.08150666,149.49,149.48,0.2]
[1751958032859,71.07452048,149.49,149.48,0.2]
[1751958034271,63.58822343,149.49,149.48,0.2]
[1751958036471,54.23035212,149.49,149.48,0.2]
[1751958039163,26.0,149.46,149.45,0.2]
[1751958039350,81.34094146,149.46,149.45,0.2]
[1751958039555,93.81843603,149.46,149.45,0.2]
[1751958040277,81.34094146,149.46,149.45,0.2]
[1751958040767,88.03169483,149.46,149.45,0.2]
[1751958044155,94.48063564,149.46,149.45,0.2]
[1751958044363,108.93709864,149.46,149.45,0.2]
[1751958044869,97.37192824,149.46,149.45,0.2]
[1751958046970,88.03169483,149.46,149.45,0.2]
[1751958050864,157.04133099,149.48,149.45,0.2]
[1751958051064,2.8912926,149.47,149.45,0.2]
[1751958051569,26.0,149.46,149.45,0.2]
[1751958053292,28.8912926,149.46,149.45,0.2]
[1751958055073,35.58204597,149.46,149.45,0.2]
[1751958055871,69.38204597,149.46,149.45,0.2]
[1751958059096,88.03169483,149.46,149.45,0.2]
[1751958059299,99.59686523,149.46,149.45,0.2]
[1751958060416,108.93819622,149.46,149.43,0.2]
[1751958060569,21.54094146,149.44,149.43,0.2]
[1751958060894,55.34094146,149.44,149.43,0.2]
[1751958062292,62.03259028,149.44,149.43,0.2]
[1751958068122,6.69128776,149.45,149.43,0.2]
[1751958068345,33.8,149.45,149.43,0.2]
[1751958068507,2.8912926,149.44,149.43,0.2]
[1751958068703,28.8912926,149.44,149.43,0.2]
[1751958068904,30.52040918,149.44,149.43,0.2]
[1751958080032,26.0,149.44,149.43,0.2]
[1751958080346,30.52040918,149.44,149.43,0.2]
[1751958086858,26.0,149.44,149.43,0.2]
[1751958087154,30.52040918,149.44,149.43,0.2]
[1751958088853,28.89332495,149.44,149.43,0.2]
[1751958090329,2.89332495,149.44,149.43,0.2]
[1751958090535,35.58497377,149.44,149.43,0.2]
[1751958093056,26.0,149.44,149.43,0.2]
[1751958093361,35.58497377,149.44,149.43,0.2]
[1751958098264,44.97552111,149.44,149.43,0.2]
[1751958102774,42.08219616,149.44,149.43,0.2]
[1751958102970,44.97552111,149.44,149.43,0.2]
[1751958104372,37.62516997,149.44,149.43,0.2]
[1751958104573,40.74535242,149.44,149.43,0.2]
[1751958111882,26.0,149.41,149.4,0.2]
[1751958112185,36.39071359,149.41,149.4,0.2]
[1751958113799,33.49738864,149.41,149.4,0.2]
[1751958113968,36.39071359,149.41,149.4,0.2]
[1751958117167,33.49738864,149.41,149.4,0.2]
[1751958117367,36.39071359,149.41,149.4,0.2]
[1751958118888,7.49738864,149.41,149.4,9.78676537]
[1751958119190,0.03,149.44,149.4,11.29346537]
[1751958119389,7.49266483,149.43,149.42,2.89332495]
[1751958120467,0.03,149.44,149.42,2.89332495]
[1751958120667,0.03,149.44,149.43,2.89332495]
[1751958121292,0.03,149.44,149.43,9.58542158]
[1751958122887,0.03,149.44,149.43,11.21095576]
[1751958127100,0.03,149.44,149.41,6.69299243]
[1751958127310,0.03,149.44,149.43,4.51885913]
[1751958129313,0.03,149.44,149.43,11.21095576]
[1751958132884,0.03,149.44,149.43,6.69209663]
[1751958135709,0.03,149.44,149.42,6.6925445]
[1751958136007,0.03,149.44,149.42,11.21140363]
[1751958138515,0.03,149.44,149.43,4.51885913]
[1751958140926,0.03,149.44,149.42,11.21140363]
[1751958141729,4.54885913,149.44,149.41,6.69281311]
[1751958141916,4.54885913,149.44,149.4,87.5]
[1751958142224,4.51885913,149.41,149.4,0.2]
[1751958143114,11.99946528,149.41,149.4,0.2]
[1751958143829,4.51885913,149.41,149.4,0.2]
[1751958152232,0.03,149.44,149.4,0.2]
[1751958152432,4.54885913,149.44,149.4,6.89343835]
[1751958152816,26.0,149.43,149.4,6.89343835]
[1751958153338,30.51885913,149.43,149.4,6.89343835]
[1751958156144,26.0,149.43,149.4,6.89343835]
[1751958156332,30.51885913,149.43,149.4,6.89343835]
[1751958157142,0.03,149.44,149.41,4.51885913]
[1751958157345,26.03,149.44,149.42,4.51885913]
[1751958159244,26.03,149.44,149.42,6.6925445]
[1751958162354,26.03,149.44,149.41,6.69299243]
[1751958162547,26.03,149.44,149.41,11.21185156]
[1751958164244,7.49096654,149.43,149.41,11.21185156]
[1751958166359,26.03,149.44,149.41,11.21185156]
[1751958168869,0.03,149.44,149.42,4.51885913]
[1751958169054,0.03,149.44,149.43,4.51885913]
[1751958169671,0.03,149.44,149.43,11.21095576]
[1751958171388,0.03,149.44,149.42,4.51885913]
[1751958171882,0.03,149.44,149.42,11.2110788]
[1751958174653,0.03,149.44,149.42,6.69221967]
[1751958175270,0.03,149.44,149.41,11.2117596]
[1751958175984,0.03,149.44,149.41,6.69290047]
[1751958176162,4.54885913,149.44,149.41,6.69290047]
[1751958177681,0.03,149.44,149.41,11.2117596]
[1751958182060,0.03,149.44,149.42,4.51885913]
[1751958182274,0.03,149.44,149.43,4.51885913]
[1751958183489,0.03,149.44,149.41,6.69290047]
[1751958183670,0.03,149.44,149.4,6.89323588]
[1751958183984,4.54885913,149.44,149.4,11.41209501]
[1751958186519,4.54885913,149.44,149.4,6.89323588]
[1751958186710,4.54885913,149.44,149.4,11.41209501]
[1751958188813,0.03,149.44,149.4,11.41209501]
[1751958192088,0.03,149.44,149.41,11.21166947]
[1751958192812,0.03,149.44,149.42,4.51885913]
[1751958194403,0.03,149.44,149.43,6.69209663]
[1751958195818,0.03,149.44,149.43,11.21095576]
[1751958196804,0.03,149.44,149.43,6.69209663]
[1751958197014,0.03,149.44,149.43,11.21095576]
[1751958202026,7.54292942,149.44,149.43,11.21095576]
[1751958202322,7.54292942,149.44,149.43,6.69209663]
[1751958202541,7.54292942,149.44,149.42,4.51885913]
[1751958202698,7.51292942,149.43,149.42,4.51885913]
[1751958205119,7.51292942,149.43,149.41,6.69299243]
[1751958205322,0.03,149.44,149.42,4.51885913]
[1751958205497,7.51161449,149.43,149.42,4.51885913]
[1751958207420,7.51161449,149.43,149.42,11.21140363]
[1751958209726,0.03,149.44,149.41,6.69299243]
[1751958210025,0.03,149.44,149.42,4.51885913]
[1751958212825,0.03,149.44,149.42,9.58464067]
[1751958213735,0.03,149.44,149.43,2.89242324]
[1751958215440,0.03,149.44,149.43,9.58451987]
[1751958216941,0.03,149.44,149.43,4.51838779]
[1751958219841,7.54620661,149.44,149.43,11.21048442]
[1751958221343,0.03,149.44,149.43,11.21048442]
[1751958221641,0.03,149.44,149.43,98.51048442]
[1751958223030,0.03,149.44,149.43,132.29048442]
[1751958226258,0.03,149.44,149.43,44.99048442]
[1751958232166,0.03,149.44,149.43,132.29048442]
[1751958236875,0.03,149.44,149.43,130.66329812]
[1751958239061,0.03,149.44,149.43,96.88329812]
[1751958239368,0.03,149.44,149.43,130.64329812]
[1751958241581,0.03,149.44,149.43,127.75209663]
[1751958242664,0.03,149.44,149.43,33.76]
[1751958242870,0.03,149.44,149.42,33.76]
[1751958243081,0.03,149.44,149.42,40.45253935]
[1751958244595,0.03,149.44,149.42,43.34374084]
[1751958245171,0.03,149.44,149.42,40.45253935]
[1751958245371,0.03,149.44,149.42,43.34374084]
[1751958245691,0.03,149.44,149.43,33.76]
[1751958246195,0.03,149.44,149.43,40.45209663]
[1751958246402,0.03,149.44,149.43,43.34329812]
[1751958249786,0.03,149.44,149.43,40.45209663]
[1751958249981,0.03,149.44,149.4,87.5]
[1751958250172,0.03,149.44,149.42,2.89120149]
[1751958250679,0.03,149.44,149.43,33.76]
[1751958251294,0.03,149.44,149.43,33.82]
[1751958253999,0.03,149.44,149.43,40.51209663]
[1751958260210,0.03,149.44,149.43,33.82]
[1751958260632,0.03,149.44,149.43,0.06]
[1751958261307,0.03,149.44,149.43,6.75209663]
[1751958261496,0.03,149.44,149.43,9.64329812]
[1751958262593,0.03,149.44,149.43,6.75209663]
[1751958262792,0.03,149.44,149.43,9.64329812]
[1751958267615,0.03,149.44,149.43,96.94329812]
[1751958276908,0.03,149.44,149.43,90.25120149]
[1751958277216,0.03,149.44,149.43,33.82]
[1751958281641,0.03,149.44,149.43,0.06]
[1751958293355,0.03,149.44,149.41,2.89120149]
[1751958293758,2.92120149,149.44,149.37,100.4929]
[1751958293964,2.89120149,149.43,149.39,2.89120149]
[1751958294350,2.92120149,149.44,149.39,2.89120149]
[1751958294739,9.61287898,149.44,149.39,2.89120149]
[1751958294937,2.89120149,149.43,149.39,2.89120149]
[1751958295463,2.89120149,149.43,149.41,0.06]
[1751958297559,2.89120149,149.42,149.41,0.06]
[1751958297736,4.43570149,149.42,149.41,0.06]
[1751958299166,11.12824599,149.42,149.41,0.06]
[1751958300261,29.77789485,149.42,149.41,0.06]
[1751958300439,63.53789485,149.42,149.41,0.06]
[1751958305769,38.19570149,149.42,149.41,0.06]
[1751958306462,64.19570149,149.42,149.41,0.06]
[1751958307665,61.3045,149.42,149.41,0.06]